[Event "Live Chess"]
[Site "Chess.com"]
[Date "2023.05.21"]
[Round "-"]
[White "Reggie016"]
[Black "whitedjohn"]
[Result "0-1"]
[WhiteElo "1068"]
[BlackElo "1642"]
[TimeControl "300"]
[EndTime "1:41:13 PDT"]
[Termination "whitedjohn won by resignation"]

1. e4 {[%clk 0:04:57.9]} 1... Nf6 {[%clk 0:04:58.7]} 2. e5 {[%clk 0:04:54.2]}
2... Nd5 {[%clk 0:04:57.5]} 3. d4 {[%clk 0:04:53.4]} 3... d6 {[%clk 0:04:56.2]}
4. c3 {[%clk 0:04:52.6]} 4... dxe5 {[%clk 0:04:53.5]} 5. dxe5 {[%clk 0:04:46.9]}
5... Nc6 {[%clk 0:04:52.5]} 6. c4 {[%clk 0:04:35.3]} 6... Nb6 {[%clk 0:04:49]}
7. Qxd8+ {[%clk 0:04:28.9]} 7... Kxd8 {[%clk 0:04:47.1]} 8. Nf3 {[%clk
0:04:18.2]} 8... Bg4 {[%clk 0:04:44.3]} 9. Be2 {[%clk 0:04:07.6]} 9... e6 {[%clk
0:04:41.3]} 10. Nbd2 {[%clk 0:03:52.9]} 10... Bb4 {[%clk 0:04:37.3]} 11. a3
{[%clk 0:03:46.2]} 11... Bxd2+ {[%clk 0:04:35.7]} 12. Bxd2 {[%clk 0:03:46]}
12... Bxf3 {[%clk 0:04:32.2]} 13. Bxf3 {[%clk 0:03:43.2]} 13... Nxc4 {[%clk
0:04:27.8]} 14. Bg5+ {[%clk 0:03:34.6]} 14... Ke8 {[%clk 0:04:18.9]} 15. b3
{[%clk 0:03:28.3]} 15... N4xe5 {[%clk 0:04:17.1]} 16. Bxc6+ {[%clk 0:03:17.7]}
16... Nxc6 {[%clk 0:04:15.6]} 17. O-O-O {[%clk 0:03:16.8]} 17... f6 {[%clk
0:04:13.6]} 18. Bf4 {[%clk 0:03:13.8]} 18... e5 {[%clk 0:04:12.2]} 19. Be3
{[%clk 0:03:13]} 19... Rd8 {[%clk 0:04:09.6]} 20. f4 {[%clk 0:03:09.5]} 20... b6
{[%clk 0:03:58.7]} 21. Rhe1 {[%clk 0:03:04.7]} 21... Ke7 {[%clk 0:03:55]} 22.
fxe5 {[%clk 0:03:03.3]} 22... Nxe5 {[%clk 0:03:53.6]} 23. Bd4 {[%clk 0:03:00]}
23... Ke6 {[%clk 0:03:47.4]} 24. h4 {[%clk 0:02:52.6]} 24... Rd5 {[%clk
0:03:45.7]} 25. b4 {[%clk 0:02:49.7]} 25... Rhd8 {[%clk 0:03:43.6]} 0-1

[Event "Live Chess"]
[Site "Chess.com"]
[Date "2023.05.21"]
[Round "-"]
[White "Hacker_2009"]
[Black "elephantgerrald"]
[Result "1-0"]
[WhiteElo "1916"]
[BlackElo "706"]
[TimeControl "300"]
[EndTime "1:41:27 PDT"]
[Termination "Hacker_2009 won on time"]

1. d4 {[%clk 0:04:58.5]} 1... d5 {[%clk 0:04:59]} 2. Nf3 {[%clk 0:04:57.1]} 2...
Bg4 {[%clk 0:04:57.3]} 3. e3 {[%clk 0:04:55.8]} 3... Bxf3 {[%clk 0:04:56.2]} 4.
Qxf3 {[%clk 0:04:54.2]} 4... c6 {[%clk 0:04:55]} 5. c4 {[%clk 0:04:51.9]} 5...
dxc4 {[%clk 0:04:53.8]} 6. Bxc4 {[%clk 0:04:50.5]} 6... Nf6 {[%clk 0:04:51.8]}
7. Nc3 {[%clk 0:04:49.3]} 7... e6 {[%clk 0:04:48.4]} 8. O-O {[%clk 0:04:48]}
8... Bb4 {[%clk 0:04:32.8]} 9. Bd2 {[%clk 0:04:45.3]} 9... O-O {[%clk
0:03:57.2]} 10. a3 {[%clk 0:04:40.9]} 10... Bxc3 {[%clk 0:03:52.7]} 11. Bxc3
{[%clk 0:04:39.4]} 11... Nbd7 {[%clk 0:03:43.2]} 12. Rfd1 {[%clk 0:04:35.4]}
12... b5 {[%clk 0:03:41.4]} 13. Bd3 {[%clk 0:04:33.4]} 13... Qb6 {[%clk
0:03:34.3]} 14. Rac1 {[%clk 0:04:31.3]} 14... a5 {[%clk 0:03:31.2]} 15. b4
{[%clk 0:04:11.7]} 15... a4 {[%clk 0:03:25.2]} 16. Bb2 {[%clk 0:04:09.4]} 16...
Rfe8 {[%clk 0:03:19.6]} 17. Qxc6 {[%clk 0:04:05.4]} 17... Qxc6 {[%clk
0:03:04.1]} 18. Rxc6 {[%clk 0:04:05.3]} 18... e5 {[%clk 0:02:59.4]} 19. dxe5
{[%clk 0:04:01.4]} 19... Nxe5 {[%clk 0:02:56.8]} 20. Bxe5 {[%clk 0:04:00.7]}
20... Rxe5 {[%clk 0:02:54.6]} 21. Bxb5 {[%clk 0:04:00.3]} 21... h6 {[%clk
0:02:48]} 22. Be2 {[%clk 0:03:58.9]} 22... Rae8 {[%clk 0:02:39.5]} 23. h3 {[%clk
0:03:57.6]} 23... Ne4 {[%clk 0:02:36]} 24. Bf3 {[%clk 0:03:54]} 24... Ng5 {[%clk
0:02:18.8]} 25. Ra6 {[%clk 0:03:48.7]} 25... Nxf3+ {[%clk 0:02:06.4]} 26. gxf3
{[%clk 0:03:48.6]} 26... Rg5+ {[%clk 0:02:04.5]} 27. Kh2 {[%clk 0:03:46.6]}
27... Rc8 {[%clk 0:01:55.2]} 28. Rxa4 {[%clk 0:03:45.3]} 28... Rc2 {[%clk
0:01:53.2]} 29. Rf1 {[%clk 0:03:41.3]} 29... f5 {[%clk 0:01:47.9]} 30. f4 {[%clk
0:03:38.5]} 30... Rg6 {[%clk 0:01:45.9]} 31. Ra7 {[%clk 0:03:36.1]} 31... Kh7
{[%clk 0:01:43.9]} 32. a4 {[%clk 0:03:33.8]} 32... h5 {[%clk 0:01:39.4]} 33. b5
{[%clk 0:03:32.3]} 33... Rb2 {[%clk 0:01:36.2]} 34. Rc7 {[%clk 0:03:10.2]} 34...
Kh6 {[%clk 0:01:20.7]} 35. Rc5 {[%clk 0:03:06]} 35... Rf6 {[%clk 0:01:14.3]} 36.
Kg3 {[%clk 0:02:55.1]} 36... Rg6+ {[%clk 0:00:51.8]} 37. Kf3 {[%clk 0:02:53.7]}
37... Rf6 {[%clk 0:00:45]} 38. Rfc1 {[%clk 0:02:49.7]} 38... g5 {[%clk
0:00:40.4]} 39. fxg5+ {[%clk 0:02:42.8]} 39... Kxg5 {[%clk 0:00:38.3]} 40. R1c4
{[%clk 0:02:38.6]} 40... Kg6 {[%clk 0:00:28.5]} 41. Rc6 {[%clk 0:02:36.6]} 41...
Rxc6 {[%clk 0:00:25.7]} 42. bxc6 {[%clk 0:02:35.4]} 42... Rb8 {[%clk 0:00:22.7]}
43. c7 {[%clk 0:02:34.6]} 43... Rc8 {[%clk 0:00:21.3]} 44. a5 {[%clk 0:02:34]}
44... Kf7 {[%clk 0:00:18.6]} 45. a6 {[%clk 0:02:33.3]} 45... Ke8 {[%clk
0:00:17.9]} 46. Kf4 {[%clk 0:02:32.9]} 46... Kd7 {[%clk 0:00:17.2]} 47. Kxf5
{[%clk 0:02:32.6]} 47... Rxc7 {[%clk 0:00:16.3]} 48. Rxc7+ {[%clk 0:02:31.7]}
48... Kxc7 {[%clk 0:00:15.5]} 49. Kg5 {[%clk 0:02:31.6]} 49... Kb6 {[%clk
0:00:14.8]} 50. Kxh5 {[%clk 0:02:31.5]} 50... Kxa6 {[%clk 0:00:14.3]} 51. Kg6
{[%clk 0:02:30.8]} 51... Kb7 {[%clk 0:00:13.9]} 52. h4 {[%clk 0:02:30.7]} 52...
Kc8 {[%clk 0:00:13.3]} 53. h5 {[%clk 0:02:30.6]} 53... Kd8 {[%clk 0:00:12.8]}
54. h6 {[%clk 0:02:30.5]} 54... Ke8 {[%clk 0:00:12.4]} 55. Kg7 {[%clk 0:02:30]}
55... Ke7 {[%clk 0:00:11.3]} 56. h7 {[%clk 0:02:29.4]} 56... Ke6 {[%clk
0:00:10.7]} 57. h8=Q {[%clk 0:02:28.2]} 57... Kf5 {[%clk 0:00:10.3]} 58. Qf8+
{[%clk 0:02:26.4]} 58... Ke4 {[%clk 0:00:10]} 59. Qf4+ {[%clk 0:02:25.3]} 59...
Kd3 {[%clk 0:00:02.3]} 60. Qd4+ {[%clk 0:02:25.2]} 60... Ke2 {[%clk 0:00:01.5]}
61. e4 {[%clk 0:02:25.1]} 1-0

[Event "Live Chess"]
[Site "Chess.com"]
[Date "2023.05.21"]
[Round "-"]
[White "LiamClery2020"]
[Black "raminguy"]
[Result "0-1"]
[WhiteElo "2017"]
[BlackElo "1962"]
[TimeControl "300"]
[EndTime "1:41:33 PDT"]
[Termination "raminguy won by resignation"]

1. e4 {[%clk 0:04:59.1]} 1... e5 {[%clk 0:04:59.2]} 2. Nc3 {[%clk 0:04:58.4]}
2... Nc6 {[%clk 0:04:58.7]} 3. Bc4 {[%clk 0:04:57.3]} 3... Nf6 {[%clk 0:04:58]}
4. d3 {[%clk 0:04:56.6]} 4... Na5 {[%clk 0:04:57.4]} 5. Bb3 {[%clk 0:04:55.6]}
5... Nxb3 {[%clk 0:04:56.4]} 6. axb3 {[%clk 0:04:55.5]} 6... Bc5 {[%clk
0:04:55.4]} 7. Nf3 {[%clk 0:04:54.6]} 7... d6 {[%clk 0:04:54.1]} 8. O-O {[%clk
0:04:54.1]} 8... a6 {[%clk 0:04:52.7]} 9. Be3 {[%clk 0:04:53.7]} 9... Bxe3
{[%clk 0:04:51.1]} 10. fxe3 {[%clk 0:04:53.6]} 10... O-O {[%clk 0:04:50.4]} 11.
Qd2 {[%clk 0:04:52.8]} 11... c6 {[%clk 0:04:49.3]} 12. d4 {[%clk 0:04:52.4]}
12... exd4 {[%clk 0:04:46.5]} 13. exd4 {[%clk 0:04:52.3]} 13... Bg4 {[%clk
0:04:45]} 14. Rae1 {[%clk 0:04:50.8]} 14... Re8 {[%clk 0:04:42.7]} 15. h3 {[%clk
0:04:48.8]} 15... Bxf3 {[%clk 0:04:41.1]} 16. Rxf3 {[%clk 0:04:48.7]} 16... b5
{[%clk 0:04:36.5]} 17. Qg5 {[%clk 0:04:47.2]} 17... b4 {[%clk 0:04:27.7]} 18.
Ref1 {[%clk 0:04:34.5]} 18... h6 {[%clk 0:04:12.9]} 19. Qg3 {[%clk 0:04:32.8]}
19... Kh8 {[%clk 0:03:43.7]} 20. Rxf6 {[%clk 0:04:29]} 20... gxf6 {[%clk
0:03:40.7]} 21. Qh4 {[%clk 0:04:27.4]} 21... Kg7 {[%clk 0:03:08.9]} 22. Rf4
{[%clk 0:04:24.6]} 22... bxc3 {[%clk 0:03:06.7]} 23. Rg4+ {[%clk 0:04:22.8]}
23... Kf8 {[%clk 0:03:05.6]} 24. Qxh6+ {[%clk 0:04:18]} 24... Ke7 {[%clk
0:03:05]} 25. bxc3 {[%clk 0:04:16.6]} 25... Kd7 {[%clk 0:03:04.1]} 26. Rg7
{[%clk 0:04:07.2]} 26... Qe7 {[%clk 0:02:44.9]} 27. Qh7 {[%clk 0:03:58.3]} 27...
Rf8 {[%clk 0:02:43.3]} 28. Qf5+ {[%clk 0:03:56.6]} 28... Qe6 {[%clk 0:02:38.3]}
0-1

[Event "Live Chess"]
[Site "Chess.com"]
[Date "2023.05.21"]
[Round "-"]
[White "YrrriKharkiv"]
[Black "siddu198"]
[Result "1-0"]
[WhiteElo "2066"]
[BlackElo "1612"]
[TimeControl "300"]
[EndTime "1:41:48 PDT"]
[Termination "YrrriKharkiv won by resignation"]

1. e4 {[%clk 0:04:56.8]} 1... e5 {[%clk 0:04:59]} 2. Nf3 {[%clk 0:04:54.1]} 2...
d6 {[%clk 0:04:56.5]} 3. Bc4 {[%clk 0:04:52.9]} 3... Be7 {[%clk 0:04:54.7]} 4.
d4 {[%clk 0:04:51.5]} 4... exd4 {[%clk 0:04:53.4]} 5. c3 {[%clk 0:04:45.3]} 5...
dxc3 {[%clk 0:04:52.1]} 6. Nxc3 {[%clk 0:04:42.8]} 6... Bg4 {[%clk 0:04:50.1]}
7. Qd5 {[%clk 0:04:36.4]} 7... Be6 {[%clk 0:04:27.2]} 8. Qb5+ {[%clk 0:04:28.2]}
8... c6 {[%clk 0:04:10.7]} 9. Qxb7 {[%clk 0:04:25.6]} 9... Bxc4 {[%clk
0:04:09.4]} 10. Qxa8 {[%clk 0:04:24.6]} 10... Nd7 {[%clk 0:04:07.9]} 11. Qxd8+
{[%clk 0:04:23]} 11... Bxd8 {[%clk 0:04:06.5]} 12. Bf4 {[%clk 0:04:16.4]} 12...
Be7 {[%clk 0:04:04.4]} 13. O-O-O {[%clk 0:04:14.3]} 13... d5 {[%clk 0:03:57.2]}
14. exd5 {[%clk 0:04:12.5]} 14... cxd5 {[%clk 0:03:56.5]} 15. Nxd5 {[%clk
0:04:11.5]} 15... Bxd5 {[%clk 0:03:55.9]} 16. Rxd5 {[%clk 0:04:10.2]} 16... Nb6
{[%clk 0:03:53.6]} 17. Ra5 {[%clk 0:04:05.6]} 17... Nc8 {[%clk 0:03:46.5]} 18.
Re1 {[%clk 0:03:55.5]} 18... Nf6 {[%clk 0:03:42.7]} 19. Rae5 {[%clk 0:03:46.3]}
19... Ng4 {[%clk 0:03:36.9]} 20. R5e2 {[%clk 0:03:41.9]} 20... Nf6 {[%clk
0:03:33.7]} 21. Nd4 {[%clk 0:03:27.1]} 21... Nd5 {[%clk 0:03:23.3]} 22. Bg5
{[%clk 0:03:09.6]} 22... f6 {[%clk 0:03:22]} 23. Bd2 {[%clk 0:02:53.5]} 23...
Kf7 {[%clk 0:03:18.9]} 24. Kb1 {[%clk 0:02:41.8]} 24... Rd8 {[%clk 0:03:11.3]}
25. Nc6 {[%clk 0:02:38.6]} 25... Rd7 {[%clk 0:03:08.9]} 26. Nxe7 {[%clk
0:02:37.7]} 26... Ncxe7 {[%clk 0:03:06.5]} 27. Rd1 {[%clk 0:02:29.5]} 27... Rb7
{[%clk 0:02:54.8]} 28. Ka1 {[%clk 0:02:19.8]} 28... h6 {[%clk 0:02:40.6]} 29.
Be3 {[%clk 0:02:14.1]} 29... a5 {[%clk 0:02:21.5]} 30. Red2 {[%clk 0:02:10.3]}
30... Nxe3 {[%clk 0:02:11]} 31. fxe3 {[%clk 0:02:08.9]} 31... Ke6 {[%clk
0:02:08.5]} 32. Rd6+ {[%clk 0:02:04.1]} 32... Kf5 {[%clk 0:02:05]} 33. Rd7
{[%clk 0:02:03.2]} 33... Rxd7 {[%clk 0:02:02.8]} 34. Rxd7 {[%clk 0:02:01.2]}
34... Ke6 {[%clk 0:01:58.1]} 35. Ra7 {[%clk 0:01:58.3]} 35... Nf5 {[%clk
0:01:51.5]} 36. e4 {[%clk 0:01:51.8]} 36... Ne7 {[%clk 0:01:44.8]} 37. Rxa5
{[%clk 0:01:50.2]} 37... Nc6 {[%clk 0:01:43.7]} 38. Rc5 {[%clk 0:01:46.3]} 38...
Kd6 {[%clk 0:01:41.6]} 39. Rc3 {[%clk 0:01:45.7]} 39... Nd4 {[%clk 0:01:39.1]}
40. a4 {[%clk 0:01:41.3]} 40... Ke5 {[%clk 0:01:36.7]} 41. a5 {[%clk 0:01:40.7]}
41... Kxe4 {[%clk 0:01:30.1]} 42. a6 {[%clk 0:01:38.9]} 42... Nb5 {[%clk
0:01:24.4]} 43. Rc5 {[%clk 0:01:37]} 43... Na7 {[%clk 0:01:20.1]} 44. Rc7 {[%clk
0:01:35.9]} 44... Nb5 {[%clk 0:01:16.8]} 45. Rb7 {[%clk 0:01:34.6]} 45... Nd6
{[%clk 0:01:12.5]} 46. Rxg7 {[%clk 0:01:32]} 46... Nb5 {[%clk 0:01:09.9]} 47.
Rb7 {[%clk 0:01:30.5]} 1-0

[Event "Live Chess"]
[Site "Chess.com"]
[Date "2023.05.21"]
[Round "-"]
[White "ExIsambard"]
[Black "OSmith06"]
[Result "1-0"]
[WhiteElo "1911"]
[BlackElo "1631"]
[TimeControl "300"]
[EndTime "1:41:48 PDT"]
[Termination "ExIsambard won by checkmate"]

1. d4 {[%clk 0:04:59.7]} 1... Nf6 {[%clk 0:04:55.5]} 2. Nf3 {[%clk 0:04:59.3]}
2... e6 {[%clk 0:04:54.6]} 3. Bg5 {[%clk 0:04:59.2]} 3... d5 {[%clk 0:04:53.9]}
4. e3 {[%clk 0:04:58.7]} 4... c5 {[%clk 0:04:52.9]} 5. c3 {[%clk 0:04:57.7]}
5... Nc6 {[%clk 0:04:51.9]} 6. Bd3 {[%clk 0:04:56.2]} 6... Bd6 {[%clk 0:04:51]}
7. Nbd2 {[%clk 0:04:55.7]} 7... O-O {[%clk 0:04:50]} 8. h4 {[%clk 0:04:55]} 8...
h6 {[%clk 0:04:48.1]} 9. Qe2 {[%clk 0:04:53]} 9... Bd7 {[%clk 0:04:42.1]} 10.
O-O-O {[%clk 0:04:52.2]} 10... hxg5 {[%clk 0:04:33.7]} 11. hxg5 {[%clk
0:04:51.1]} 11... Ne4 {[%clk 0:04:33.2]} 12. Nxe4 {[%clk 0:04:44.3]} 12... dxe4
{[%clk 0:04:33.1]} 13. Bxe4 {[%clk 0:04:43.5]} 13... f5 {[%clk 0:04:19.9]} 14.
gxf6 {[%clk 0:04:42.5]} 14... Qxf6 {[%clk 0:04:16.4]} 15. dxc5 {[%clk
0:04:15.7]} 15... Bxc5 {[%clk 0:03:48.6]} 16. Rxd7 {[%clk 0:04:13.3]} 16... Rad8
{[%clk 0:03:42.7]} 17. Bh7+ {[%clk 0:04:11.8]} 17... Kh8 {[%clk 0:03:37.7]} 18.
Bg6+ {[%clk 0:04:08.6]} 18... Kg8 {[%clk 0:03:35.8]} 19. Bh7+ {[%clk 0:03:51.5]}
19... Kh8 {[%clk 0:03:34.3]} 20. Bc2+ {[%clk 0:03:47.3]} 20... Kg8 {[%clk
0:03:33]} 21. Qd3 {[%clk 0:03:45.4]} 21... Rxd7 {[%clk 0:03:29.4]} 22. Qxd7
{[%clk 0:03:38.7]} 22... Rd8 {[%clk 0:03:26]} 23. Qxb7 {[%clk 0:03:36.1]} 23...
e5 {[%clk 0:03:12.1]} 24. Bh7+ {[%clk 0:03:30.7]} 24... Kf8 {[%clk 0:03:11.1]}
25. Be4 {[%clk 0:03:25.3]} 25... Ne7 {[%clk 0:03:03.2]} 26. Rh8+ {[%clk
0:02:54.7]} 26... Ng8 {[%clk 0:02:59.6]} 27. Nh4 {[%clk 0:02:51.5]} 27... Bxe3+
{[%clk 0:02:41.8]} 28. Kc2 {[%clk 0:02:35.9]} 28... Qxf2+ {[%clk 0:02:31.9]} 29.
Kb3 {[%clk 0:02:32.8]} 29... Qf7+ {[%clk 0:02:15.9]} 30. Qxf7+ {[%clk
0:02:19.8]} 30... Kxf7 {[%clk 0:02:15.8]} 31. Nf5 {[%clk 0:02:11.3]} 31... Bb6
{[%clk 0:02:05.6]} 32. Rh7 {[%clk 0:02:05.9]} 32... Nf6 {[%clk 0:01:53.6]} 33.
Rxg7+ {[%clk 0:02:04.3]} 33... Ke6 {[%clk 0:01:53.1]} 34. Re7# {[%clk
0:02:01.4]} 1-0

[Event "Live Chess"]
[Site "Chess.com"]
[Date "2023.05.21"]
[Round "-"]
[White "Tema1107"]
[Black "Tushinskiy"]
[Result "0-1"]
[WhiteElo "1945"]
[BlackElo "2181"]
[TimeControl "300"]
[EndTime "1:42:14 PDT"]
[Termination "Tushinskiy won on time"]

1. c4 {[%clk 0:04:58.1]} 1... c5 {[%clk 0:04:59.1]} 2. Nc3 {[%clk 0:04:56.6]}
2... d6 {[%clk 0:04:58.5]} 3. g3 {[%clk 0:04:54]} 3... Nf6 {[%clk 0:04:57.7]} 4.
Bg2 {[%clk 0:04:53.5]} 4... g6 {[%clk 0:04:57.6]} 5. e3 {[%clk 0:04:52.8]} 5...
Bg7 {[%clk 0:04:57.5]} 6. Nge2 {[%clk 0:04:52.4]} 6... Nc6 {[%clk 0:04:56.1]} 7.
O-O {[%clk 0:04:51.5]} 7... O-O {[%clk 0:04:55.2]} 8. d4 {[%clk 0:04:51]} 8...
cxd4 {[%clk 0:04:53.9]} 9. exd4 {[%clk 0:04:50.9]} 9... h5 {[%clk 0:04:53.1]}
10. h3 {[%clk 0:04:45.3]} 10... Bd7 {[%clk 0:04:50.5]} 11. b3 {[%clk 0:04:43.9]}
11... a6 {[%clk 0:04:48.8]} 12. Bb2 {[%clk 0:04:41.1]} 12... Rc8 {[%clk
0:04:47.8]} 13. Rc1 {[%clk 0:04:39.4]} 13... Re8 {[%clk 0:04:40]} 14. d5 {[%clk
0:04:32]} 14... Nb8 {[%clk 0:04:35]} 15. Qd2 {[%clk 0:04:14.3]} 15... b5 {[%clk
0:04:31.8]} 16. Ne4 {[%clk 0:04:10.8]} 16... bxc4 {[%clk 0:04:25.3]} 17. Nxf6+
{[%clk 0:04:05.9]} 17... exf6 {[%clk 0:04:24]} 18. bxc4 {[%clk 0:04:03.6]} 18...
Kh7 {[%clk 0:04:22]} 19. Nd4 {[%clk 0:03:55.6]} 19... Bh6 {[%clk 0:04:12]} 20.
f4 {[%clk 0:03:52.4]} 20... Bg7 {[%clk 0:04:08.1]} 21. Ba1 {[%clk 0:03:35.5]}
21... Rc5 {[%clk 0:04:01.7]} 22. Nb3 {[%clk 0:03:33.5]} 22... Rc8 {[%clk
0:03:57.8]} 23. Qf2 {[%clk 0:03:15.3]} 23... Bf5 {[%clk 0:03:55.5]} 24. c5
{[%clk 0:03:12.5]} 24... dxc5 {[%clk 0:03:50.7]} 25. Nxc5 {[%clk 0:03:09.7]}
25... Nd7 {[%clk 0:03:48.1]} 26. Nb7 {[%clk 0:03:02.9]} 26... Qe7 {[%clk
0:03:46.5]} 27. Na5 {[%clk 0:02:28.4]} 27... Rxc1 {[%clk 0:03:40]} 28. Rxc1
{[%clk 0:02:28.3]} 28... Qa3 {[%clk 0:03:38]} 29. Re1 {[%clk 0:01:43.1]} 29...
Rxe1+ {[%clk 0:03:31.6]} 30. Qxe1 {[%clk 0:01:43]} 30... Qxa2 {[%clk 0:03:30.5]}
31. Nc6 {[%clk 0:01:36.3]} 31... Nc5 {[%clk 0:03:20]} 32. Bd4 {[%clk 0:01:30.9]}
32... Nd3 {[%clk 0:03:18.3]} 33. Qe7 {[%clk 0:01:29]} 33... Qb1+ {[%clk
0:02:58.3]} 34. Kh2 {[%clk 0:01:27.7]} 34... Ne1 {[%clk 0:02:55.5]} 35. Bh1
{[%clk 0:00:23.8]} 35... Qc2+ {[%clk 0:02:36.9]} 36. Kg1 {[%clk 0:00:22.8]}
36... Qd1 {[%clk 0:02:29.8]} 37. Kh2 {[%clk 0:00:21.1]} 37... Qd2+ {[%clk
0:02:20.6]} 38. Kg1 {[%clk 0:00:19.5]} 38... Bxh3 {[%clk 0:02:13.5]} 39. d6
{[%clk 0:00:08.8]} 39... Qc1 {[%clk 0:01:59.4]} 40. Kh2 {[%clk 0:00:04.8]} 40...
Bg4 {[%clk 0:01:53.3]} 41. d7 {[%clk 0:00:02.2]} 41... Nf3+ {[%clk 0:01:50.3]}
42. Bxf3 {[%clk 0:00:01.1]} 42... Bxf3 {[%clk 0:01:50.2]} 0-1

[Event "Live Chess"]
[Site "Chess.com"]
[Date "2023.05.21"]
[Round "-"]
[White "Tiltador"]
[Black "JanMur7"]
[Result "0-1"]
[WhiteElo "749"]
[BlackElo "1971"]
[TimeControl "300"]
[EndTime "1:42:24 PDT"]
[Termination "JanMur7 won by resignation"]

1. e4 {[%clk 0:04:57.4]} 1... e5 {[%clk 0:04:58.9]} 2. Nf3 {[%clk 0:04:56.3]}
2... Nc6 {[%clk 0:04:58.3]} 3. Bb5 {[%clk 0:04:53]} 3... Nf6 {[%clk 0:04:57.1]}
4. Bxc6 {[%clk 0:04:51.9]} 4... bxc6 {[%clk 0:04:36.9]} 5. Nxe5 {[%clk
0:04:48.8]} 5... Qe7 {[%clk 0:04:33.7]} 6. Nf3 {[%clk 0:04:47.2]} 6... Qxe4+
{[%clk 0:04:32]} 7. Qe2 {[%clk 0:04:39.6]} 7... Qxe2+ {[%clk 0:04:30.6]} 8. Kxe2
{[%clk 0:04:38.4]} 8... Ba6+ {[%clk 0:04:30.4]} 9. d3 {[%clk 0:04:36.7]} 9...
Bd6 {[%clk 0:04:22.6]} 10. Kd2 {[%clk 0:04:30.8]} 10... O-O {[%clk 0:04:18.8]}
11. Nc3 {[%clk 0:04:25.6]} 11... Nd5 {[%clk 0:04:09.8]} 12. Nxd5 {[%clk
0:04:17.2]} 12... cxd5 {[%clk 0:04:07.5]} 13. b3 {[%clk 0:04:15.1]} 13... Bc5
{[%clk 0:03:55]} 14. Rf1 {[%clk 0:04:09.9]} 14... Rfe8 {[%clk 0:03:40.2]} 15.
Bb2 {[%clk 0:04:08.4]} 15... Re7 {[%clk 0:03:37]} 16. c4 {[%clk 0:04:03.9]}
16... dxc4 {[%clk 0:03:31.9]} 17. dxc4 {[%clk 0:04:02.1]} 17... Rae8 {[%clk
0:03:20.7]} 18. Nd4 {[%clk 0:03:24.5]} 18... Bxd4 {[%clk 0:03:11.5]} 19. Bxd4
{[%clk 0:03:20.9]} 19... Re2+ {[%clk 0:03:08.9]} 20. Kc3 {[%clk 0:03:12.6]}
20... Bb7 {[%clk 0:02:55.7]} 21. f3 {[%clk 0:03:05.2]} 21... a5 {[%clk
0:02:52.1]} 22. a4 {[%clk 0:02:51.9]} 22... Rxg2 {[%clk 0:02:48]} 23. h4 {[%clk
0:02:38.3]} 23... f5 {[%clk 0:02:37.9]} 24. b4 {[%clk 0:02:31.7]} 24... axb4+
{[%clk 0:02:30.8]} 25. Kxb4 {[%clk 0:02:30.4]} 25... Rd2 {[%clk 0:02:27.6]} 26.
Bc3 {[%clk 0:02:18.7]} 26... Rd3 {[%clk 0:02:25.4]} 27. Rac1 {[%clk 0:02:08.9]}
27... Rxf3 {[%clk 0:02:13.8]} 28. Rg1 {[%clk 0:02:01.1]} 28... g6 {[%clk
0:02:10.9]} 29. h5 {[%clk 0:01:55.8]} 29... Kf7 {[%clk 0:02:06.4]} 30. hxg6+
{[%clk 0:01:52.3]} 30... hxg6 {[%clk 0:02:06.3]} 31. Rh1 {[%clk 0:01:38.8]}
31... Rxc3 {[%clk 0:02:02.3]} 32. Kxc3 {[%clk 0:01:20.2]} 32... Bxh1 {[%clk
0:01:59.9]} 33. Rxh1 {[%clk 0:01:17.9]} 33... f4 {[%clk 0:01:58.4]} 34. Rh7+
{[%clk 0:01:14.3]} 34... Ke6 {[%clk 0:01:51.2]} 35. Rh6 {[%clk 0:01:06.6]} 35...
Kf6 {[%clk 0:01:47]} 36. Rh4 {[%clk 0:01:04.3]} 36... g5 {[%clk 0:01:44.3]} 37.
Rh6+ {[%clk 0:01:03]} 37... Kf5 {[%clk 0:01:43.2]} 38. Rh7 {[%clk 0:01:01]}
38... Rd8 {[%clk 0:01:37.7]} 39. Rf7+ {[%clk 0:00:58.5]} 39... Kg4 {[%clk
0:01:33.5]} 40. a5 {[%clk 0:00:54.4]} 40... Ra8 {[%clk 0:01:29]} 41. Kb4 {[%clk
0:00:51.5]} 41... f3 {[%clk 0:01:27.7]} 42. Kb5 {[%clk 0:00:49.6]} 42... Kg3
{[%clk 0:01:22.4]} 43. c5 {[%clk 0:00:47.8]} 43... f2 {[%clk 0:01:12.9]} 44. c6
{[%clk 0:00:40.8]} 44... dxc6+ {[%clk 0:01:10.3]} 45. Kxc6 {[%clk 0:00:39.1]}
45... Rxa5 {[%clk 0:01:08]} 46. Kxc7 {[%clk 0:00:38]} 46... Ra7+ {[%clk
0:01:06.4]} 0-1

[Event "Live Chess"]
[Site "Chess.com"]
[Date "2023.05.21"]
[Round "-"]
[White "Hacker_2009"]
[Black "ranvir123"]
[Result "1-0"]
[WhiteElo "1916"]
[BlackElo "932"]
[TimeControl "300"]
[EndTime "1:42:39 PDT"]
[Termination "Hacker_2009 won by resignation"]

1. d4 {[%clk 0:04:58.8]} 1... Nf6 {[%clk 0:04:57]} 2. Nf3 {[%clk 0:04:57.1]}
2... g6 {[%clk 0:04:56.5]} 3. c4 {[%clk 0:04:55.7]} 3... Bg7 {[%clk 0:04:55.8]}
4. Nc3 {[%clk 0:04:55.3]} 4... O-O {[%clk 0:04:54.9]} 5. e4 {[%clk 0:04:54.8]}
5... d6 {[%clk 0:04:44]} 6. Be2 {[%clk 0:04:53.4]} 6... e5 {[%clk 0:04:43.2]} 7.
O-O {[%clk 0:04:50.9]} 7... exd4 {[%clk 0:04:42]} 8. Nxd4 {[%clk 0:04:48.9]}
8... c5 {[%clk 0:04:40.7]} 9. Ndb5 {[%clk 0:04:46.3]} 9... Bd7 {[%clk
0:04:37.9]} 10. Nxd6 {[%clk 0:04:45]} 10... Nc6 {[%clk 0:04:33.6]} 11. Nxb7
{[%clk 0:04:41.3]} 11... Rb8 {[%clk 0:04:31.6]} 12. Nxc5 {[%clk 0:04:40.8]} 1-0

[Event "Live Chess"]
[Site "Chess.com"]
[Date "2023.05.21"]
[Round "-"]
[White "Denz14"]
[Black "WelshTiger"]
[Result "0-1"]
[WhiteElo "1038"]
[BlackElo "2349"]
[TimeControl "300"]
[EndTime "1:42:43 PDT"]
[Termination "WelshTiger won by resignation"]

1. e4 {[%clk 0:04:57.4]} 1... c5 {[%clk 0:04:58.7]} 2. Nf3 {[%clk 0:04:54.9]}
2... Nc6 {[%clk 0:04:56.2]} 3. c3 {[%clk 0:04:53.5]} 3... Nf6 {[%clk 0:04:50.4]}
4. d3 {[%clk 0:04:51.9]} 4... e5 {[%clk 0:04:49.1]} 5. Bg5 {[%clk 0:04:50.2]}
5... d6 {[%clk 0:04:47.4]} 6. Nbd2 {[%clk 0:04:44]} 6... Be7 {[%clk 0:04:46.7]}
7. Nc4 {[%clk 0:04:39.2]} 7... h6 {[%clk 0:04:45.5]} 8. Bh4 {[%clk 0:04:34.6]}
8... O-O {[%clk 0:04:39.7]} 9. Qd2 {[%clk 0:04:29.3]} 9... b5 {[%clk 0:04:36.9]}
10. Ne3 {[%clk 0:04:20.7]} 10... b4 {[%clk 0:04:36]} 11. Nd5 {[%clk 0:04:12.1]}
11... Nxd5 {[%clk 0:04:28.5]} 12. exd5 {[%clk 0:04:04.8]} 12... bxc3 {[%clk
0:04:24.5]} 13. bxc3 {[%clk 0:03:57.7]} 13... Bxh4 {[%clk 0:04:15.4]} 14. dxc6
{[%clk 0:03:56.4]} 14... Bf6 {[%clk 0:04:12]} 15. d4 {[%clk 0:03:46.8]} 15...
exd4 {[%clk 0:04:08.9]} 16. cxd4 {[%clk 0:03:45.5]} 16... Re8+ {[%clk
0:04:07.9]} 17. Be2 {[%clk 0:03:43.1]} 17... Ba6 {[%clk 0:04:05.7]} 18. Ne5
{[%clk 0:03:17]} 18... Bxe2 {[%clk 0:03:54.1]} 19. Qxe2 {[%clk 0:03:13]} 19...
dxe5 {[%clk 0:03:52.4]} 20. O-O {[%clk 0:03:03.7]} 20... exd4 {[%clk 0:03:49.2]}
21. Qf3 {[%clk 0:02:59.8]} 21... Qd6 {[%clk 0:03:47.4]} 22. Rab1 {[%clk
0:02:54.4]} 22... Rac8 {[%clk 0:03:45.4]} 23. Rb7 {[%clk 0:02:43.6]} 23... Qxc6
{[%clk 0:03:44.2]} 24. Qxc6 {[%clk 0:02:40.8]} 24... Rxc6 {[%clk 0:03:44.1]} 25.
Rxa7 {[%clk 0:02:40.1]} 25... c4 {[%clk 0:03:41.1]} 0-1